[Event "Azerbaijan-ch 1st League 2025"]
[Site "Baku"]
[Date "2025.01.07"]
[Round "2.7"]
[White "Musayev, Eldar"]
[Black "Ughuzov, Ravan"]
[Result "1-0"]
[Annotator "TA"]
[ECO "A06"]
[WhiteElo "2163"]
[BlackElo "2250"]
[PlyCount "91"]
[EventDate "2025.01.05"]
[EventType "swiss"]
[EventCountry "AZE"]
[SourceTitle "playchess.com"]
[Source "ChessBase"]
[SourceQuality "1"]
[TimeControl "40/5400+30:1800+30"]

{[%evp 11,91,9,-1,0,0,0,4,14,0,0,4,-18,2,-36,-15,-19,-22,-24,-20,-32,-25,-24,-15,-21,-18,-18,11,0,52,60,58,63,105,103,93,70,67,69,110,71,76,69,85,22,29,24,49,45,38,23,212,199,202,181,201,208,231,231,806,595,569,280,263,272,280,274,258,251,433,402,554,547,1071,786,824,809,1059,1049,1029,1026,1114,851]} 1. Nf3 {[%emt 0:00:03]} Nf6 {[%emt 0:00:19]} 2. g3 {[%emt 0:00:15]} e6 {[%emt 0:00:08]} 3. Bg2 {[%emt 0:00:17]} d5 {[%emt 0:00:06]} 4. O-O {[%emt 0:00:28]} Be7 {[%emt 0:00:32]} 5. b3 {[%emt 0:06:46]} O-O {[%emt 0:00:15]} 6. Bb2 {[%emt 0:00:12]} c5 {[%emt 0:00:14]} 7. d4 {[%emt 0:01:03]} cxd4 {[%emt 0:00:41]} 8. Nxd4 {[%emt 0:03:37]} e5 {[%emt 0:00:12][%cal Be6e5,Be5e4][%mdl 32]} 9. Nf3 {[%emt 0:04:45]} e4 {[%emt 0:00:08]} 10. Nd4 {[%emt 0:00:02]} Nc6 {[%emt 0:00:10]} 11. Qd2 {[%emt 0:06:15]} Bc5 {[%emt 0:15:08]} 12. h3 {[%emt 0:07:06]} Re8 {[%emt 0:06:48][%cal Oe4e3] Threatens to win with ...e3!.} 13. Nxc6 $1 {[%emt 0:03:08]} bxc6 {[%emt 0:00:20]} 14. e3 {[%emt 0:00:07]} Qe7 {[%emt 0:08:56]} 15. Nc3 {[%emt 0:06:15]} h5 {[%emt 0:01:57][%cal Bh7h5,Bh5h4][%mdl 32]} 16. Ne2 {[%emt 0:01:35] [#]} h4 $1 {[%emt 0:02:25]} 17. c4 {[%emt 0:13:04]} dxc4 {[%emt 0:06:38]} 18. Rfc1 {[%emt 0:04:02]} Rd8 {[%emt 0:21:33]} 19. Qc2 {[%emt 0:01:57]} Ba3 {[%emt 0:06:46]} ({Better is} 19... Bb4 $11 20. Qxc4 Rd2 21. Bxf6 (21. Qxc6 Bb7 $11) 21... Qxf6 22. gxh4 (22. Qxb4 Rxe2 23. Rf1 hxg3 $19) 22... Be6 (22... Qxh4 23. Ng3 $14) 23. Qxb4 Rxe2) 20. Bxa3 $14 {[%emt 0:07:26]} Qxa3 {[%emt 0:00:06]} 21. g4 {[%emt 0:03:54]} Be6 {[%emt 0:06:12][%cal Rc4b3]} 22. Nd4 {[%emt 0:02:48]} (22. bxc4 Rab8 $11) (22. Bxe4 $6 Nxe4 23. Qxe4 Rd2 $11) 22... Qd6 {[%emt 0:04:42]} 23. Nxe6 {[%emt 0:04:23]} (23. Bxe4 $6 Nxe4 24. Qxe4 Bd5 $11) (23. g5 {feels hotter.} Nh7 24. Qxe4 Nxg5 25. Qxh4 Qe7 26. Qg3) 23... Qxe6 {[%emt 0:00:02]} 24. Qxc4 {[%emt 0:00:06]} Rd5 $1 {[%emt 0:00:06]} 25. Rc2 {[%emt 0:06:28]} (25. Qxc6 $2 Rd1+ 26. Rxd1 Qxc6 $19) 25... c5 {[%emt 0:01:54]} 26. Rac1 {[%emt 0:02:34]} Rad8 {[%emt 0:00:26]} 27. Qe2 {[%emt 0:03:05]} (27. Qb5 $16) 27... Qe5 $11 {[%emt 0:01:20]} 28. Rc4 {[%emt 0:04:46]} Rd2 {[%emt 0:02:41]} 29. Rxc5 {[%emt 0:00:49]} Qb2 $1 {[%emt 0:00:09]} (29... Rxe2 30. Rxe5 g6 31. a3 $16 (31. Bxe4 Rxa2 32. Bh1 Rdd2 $14)) (29... Qxc5 $2 30. Qxd2 Qe7 31. Qa5 $18) 30. Qe1 {[%emt 0:00:16]} Re2 $2 {[%emt 0:06:05]} (30... g6 $11) 31. Qa5 $18 {[%emt 0:01:57][%csl LRa7,LRd8]} Re8 {[%emt 0:01:10]} 32. Rf1 {[%emt 0:01:22]} (32. Qxa7 $2 Rxf2 (32... Qxa2 $2 {loses.} 33. Qxa2 Rxa2 34. Rb1 $18) 33. Bf1 Rh2 $19 (33... Qxa2 34. Qxa2 Rxa2 35. Rd1 $11)) 32... Qxa2 {[%emt 0:00:58] [#]} 33. Qb5 $1 {[%emt 0:00:02]} Rd8 {[%emt 0:05:32]} 34. g5 {[%emt 0:00:23]} Nh5 $2 {[%emt 0:00:30]} (34... Nd7) 35. Bxe4 {[%emt 0:00:53]} Nf4 {[%emt 0:01:00] [#]} 36. Qd7 {[%emt 0:01:47]} Rd2 {[%emt 0:00:34]} 37. Qf5 {[%emt 0:01:38] And now Qh7+ would win.} Ne2+ {[%emt 0:01:41]} 38. Kg2 {[%emt 0:00:01]} g6 {[%emt 0:00:09]} 39. Qf6 $40 {[%emt 0:01:46][%mdl 128] White goes for the king.} R2d6 $2 {[%emt 0:00:45]} (39... Qb2) 40. Qf3 {[%emt 0:03:09]} Rd2 41. Bd5 {[%emt 0:02:59]} Rf8 {[%emt 0:03:47]} 42. Rc7 {[%emt 0:00:51]} Rxd5 {[%emt 0:01:02]} 43. Qxd5 {[%emt 0:00:06]} Ng3 {[%emt 0:00:04]} 44. Rfc1 {[%emt 0:00:51][%cal Oc7f7]} Nf5 {[%emt 0:00:14]} 45. R1c2 {[%emt 0:00:34]} Qa6 {[%emt 0:00:15]} 46. R7c6 {[%emt 0:01:38]} 1-0

[Event "Azerbaijan-ch 1st League 2025"]
[Site "Baku"]
[Date "2025.01.07"]
[Round "2.8"]
[White "Rustamov, Rustam"]
[Black "Allajov, Ramil"]
[Result "1-0"]
[Annotator "TA"]
[ECO "B33"]
[WhiteElo "2305"]
[BlackElo "2079"]
[PlyCount "131"]
[EventDate "2025.01.05"]
[EventType "swiss"]
[EventCountry "AZE"]
[SourceTitle "playchess.com"]
[Source "ChessBase"]
[SourceQuality "1"]
[TimeControl "40/5400+30:1800+30"]

{[%evp 27,131,0,12,-15,29,23,34,35,29,0,0,0,0,0,0,0,6,8,15,7,6,7,12,9,3,0,0,0,16,20,131,137,123,131,110,116,116,116,131,131,148,137,188,141,124,107,134,125,223,218,197,185,304,301,387,374,588,921,1010,945,603,419,931,920,835,632,2442,2110,5210,2242,29966,29967,29970,29970,29970,29972,29969,29973,29974,29973,29973,29974,29974,29975,29974,29975,29978,29979,29979,29980,29980,29981,29981,29982,29982,29983,29983,29984,29984,29985,29985,29986,29986,29987,29987,29988]} 1. e4 {[%emt 0:00:16]} c5 {[%emt 0:00:05]} 2. Nf3 {[%emt 0:00:30]} Nc6 {[%emt 0:00:24]} 3. d4 {[%emt 0:00:13]} cxd4 {[%emt 0:00:04]} 4. Nxd4 {[%emt 0:00:03]} Nf6 {[%emt 0:00:22]} 5. Nc3 {[%emt 0:00:23]} e5 {[%emt 0:00:20]} 6. Ndb5 {[%emt 0:00:09]} d6 {[%emt 0:00:02]} 7. Bg5 {[%emt 0:00:33]} a6 {[%emt 0:00:07]} 8. Na3 {[%emt 0:00:04]} b5 {[%emt 0:00:10]} 9. Nd5 {[%emt 0:01:18]} Be7 {[%emt 0:00:03]} 10. Bxf6 {[%emt 0:00:11]} Bxf6 {[%emt 0:00:01]} 11. c3 {[%emt 0:00:09]} O-O {[%emt 0:00:05]} 12. Nc2 {[%emt 0:00:48]} Bg5 {[%emt 0:00:06]} 13. Be2 {[%emt 0:01:31]} Ne7 {[%emt 0:02:19]} 14. Nxe7+ {[%emt 0:00:55]} Qxe7 {[%emt 0:04:07]} 15. Nb4 {[%emt 0:00:38]} Bb7 {[%emt 0:00:17]} 16. Nd5 {[%emt 0:00:30]} Bxd5 {[%emt 0:00:29]} 17. Qxd5 {[%emt 0:00:07]} Qe6 {[%emt 0:00:04]} 18. Rd1 {[%emt 0:00:16]} Qxd5 {[%emt 0:00:23]} 19. Rxd5 {[%emt 0:00:26]} Bc1 {[%emt 0:01:04]} 20. b3 {[%emt 0:01:41]} Rfc8 {[%emt 0:01:06]} 21. c4 {[%emt 0:00:39]} bxc4 {[%emt 0:00:24]} 22. Bxc4 {[%emt 0:00:13]} Ba3 {[%emt 0:00:10]} 23. O-O {[%emt 0:01:16]} Bc5 {[%emt 0:00:41]} 24. g3 {[%emt 0:01:19]} a5 {[%emt 0:02:00]} 25. Kg2 {[%emt 0:02:12]} g6 {[%emt 0:03:56]} 26. f4 {[%emt 0:01:19]} exf4 {[%emt 0:00:09]} 27. Rxf4 {[%emt 0:00:07]} Rc7 {[%emt 0:00:25]} 28. e5 {[%emt 0:00:48]} dxe5 {[%emt 0:00:34]} (28... Bb4 $1 $11 {remains equal.}) 29. Rxf7 $1 $16 {[%emt 0:01:36]} (29. Rxe5 $2 Bd6 30. Rfe4 Bxe5 31. Rxe5 a4 $19) 29... Rxf7 {[%emt 0:02:12]} 30. Rxc5 {[%emt 0:00:09]} Kg7 {[%emt 0:00:12]} 31. Bxf7 {[%emt 0:00:21]} Kxf7 {[%emt 0:00:01]} 32. Rxe5 {[%emt 0:00:15]} a4 {[%emt 0:00:26]} 33. b4 {[%emt 0:00:44]} Rc8 {[%emt 0:00:36]} 34. Kf3 {[%emt 0:00:38]} Rc4 {[%emt 0:09:23]} (34... Rc2 $16) 35. Re4 {[%emt 0:02:07]} (35. a3 $18) 35... Rc1 {[%emt 0:00:28]} 36. a3 {[%emt 0:01:43]} Rf1+ {[%emt 0:05:04]} 37. Kg4 {[%emt 0:04:42]} Ra1 {[%emt 0:03:27]} (37... Rd1 $16) 38. Re3 $18 {[%emt 0:00:13]} Kf6 {[%emt 0:04:37]} 39. h4 {[%emt 0:01:20]} h5+ {[%emt 0:11:55]} (39... Rd1 {keeps fighting.} 40. Kf4 Rd4+ 41. Kf3 Kf5) 40. Kf4 $18 {[%emt 0:00:00]} Rb1 {[%emt 0:00:00]} 41. Ke4 {[%emt 0:02:11]} g5 {[%emt 0:07:50]} (41... Ke7 $142 42. Kd5+ Kd7) 42. hxg5+ {[%emt 0:01:45]} (42. Rf3+ $142 Kg6 43. Rd3) 42... Kxg5 {[%emt 0:04:49]} 43. Kd4 {[%emt 0:00:13]} Kg4 {[%emt 0:00:39]} 44. Kc4 {[%emt 0:00:45]} Rb2 {[%emt 0:04:12]} (44... Kf5 $142 45. Rc3 Kg4) 45. Rd3 $18 {[%emt 0:01:36]} Rb1 {[%emt 0:01:58]} 46. b5 {[%emt 0:17:25]} Rb2 {[%emt 0:00:22]} 47. Kc5 {[%emt 0:05:00]} Rb3 {[%emt 0:01:33] [#]} 48. Rd4+ $1 {[%emt 0:13:51]} Kxg3 {[%emt 0:02:24]} 49. b6 {[%emt 0:00:31]} (49. Rxa4 Rc3+ 50. Kd4 Rc8 $18) 49... h4 {[%emt 0:28:45] [#]} 50. Rb4 $1 {[%emt 0:00:32]} (50. Rxa4 h3 51. Rb4 Rxb4 52. axb4 h2 $18) 50... Rc3+ {[%emt 0:02:52]} 51. Kb5 {[%emt 0:00:17]} Rc8 {[%emt 0:00:20]} 52. b7 {[%emt 0:00:25]} Rb8 {[%emt 0:00:55]} 53. Kc6 {[%emt 0:01:21]} (53. Kxa4 h3 $16) 53... h3 {[%emt 0:00:08]} 54. Kc7 {[%emt 0:00:12]} (54. Rxa4 $2 h2 55. Kc7 Rxb7+ (55... h1=R $2 56. Kxb8 Rh7 57. Ka8 $18) 56. Kxb7 h1=Q+ $19 (56... h1=R 57. Rd4 $16)) 54... h2 {[%emt 0:00:44]} 55. Rb1 $1 {[%emt 0:00:11]} ({Not} 55. Kxb8 h1=Q $16) 55... Rh8 {[%emt 0:00:57]} 56. b8=Q {[%emt 0:00:15]} ({Stronger than} 56. b8=B Kf3 (56... h1=R 57. Rxh1 Rxh1 58. Kb6+ Kf3 59. Ka5 $19) 57. Rh1 Kg2 $19) 56... Rxb8 {[%emt 0:00:30]} 57. Kxb8 {[%emt 0:00:04]} Kg2 {[%emt 0:00:04]} 58. Kb7 {[%emt 0:00:19]} h1=Q {[%emt 0:00:06]} 59. Rxh1 {[%emt 0:00:05]} Kxh1 {[%emt 0:00:05]} 60. Kb6 {[%emt 0:00:07]} Kg2 {[%emt 0:00:02]} 61. Kb5 {[%emt 0:00:04]} Kf3 {[%emt 0:00:04]} 62. Kxa4 {[%emt 0:00:03]} Ke4 {[%emt 0:00:03]} 63. Kb5 {[%emt 0:00:04]} Kd5 {[%emt 0:00:07]} 64. a4 {[%emt 0:00:04]} Kd6 {[%emt 0:00:03]} 65. Kb6 {[%emt 0:00:03]} Kd7 {[%emt 0:00:01]} 66. Kb7 {[%emt 0:00:10]} 1-0

[Event "Azerbaijan-ch 1st League 2025"]
[Site "Baku"]
[Date "2025.01.07"]
[Round "2.9"]
[White "Isbatov, Kanan"]
[Black "Orujov, Farid"]
[Result "1/2-1/2"]
[Annotator "TA"]
[ECO "D11"]
[WhiteElo "1882"]
[BlackElo "2301"]
[PlyCount "113"]
[EventDate "2025.01.05"]
[EventType "swiss"]
[EventCountry "AZE"]
[SourceTitle "playchess.com"]
[Source "ChessBase"]
[SourceQuality "1"]
[TimeControl "40/5400+30:1800+30"]

{[%evp 9,113,-38,-7,-4,0,0,0,-20,-26,-59,-61,-78,-22,-149,-26,-43,-43,-60,-51,-121,-54,-92,-67,-62,-66,-67,-74,-57,-62,-63,-73,-66,-58,-122,-91,-159,-90,-194,-200,-192,-195,-143,-90,-102,-112,-224,-206,-220,-206,-214,-197,-163,-50,-54,-47,-64,-64,-131,-152,-220,-228,-227,-142,-285,-83,-84,-84,-456,-84,-101,0,-202,-127,-127,-102,-91,0,0,0,0,0,0,0,0,0,0,0,0,0,0,0,0,0,0,0,0,0,0,0,0,0,0,0,0,0,0]} 1. Nf3 {[%emt 0:00:05]} Nf6 {[%emt 0:00:07]} 2. d4 {[%emt 0:00:04]} d5 {[%emt 0:00:05]} 3. c4 {[%emt 0:00:05]} c6 {[%emt 0:00:04]} 4. g3 {[%emt 0:00:06]} dxc4 {[%emt 0:00:09]} 5. a4 {[%emt 0:00:31]} b5 {[%emt 0:01:54]} 6. Bg2 {[%emt 0:00:19]} Bb7 {[%emt 0:00:23]} 7. Ne5 {[%emt 0:01:02]} a6 {[%emt 0:01:01]} 8. Nc3 {[%emt 0:00:45]} Qc8 {[%emt 0:01:17]} 9. axb5 {[%emt 0:13:35]} cxb5 {[%emt 0:02:26]} 10. d5 {[%emt 0:01:32]} Nbd7 {[%emt 0:06:52]} ({Black should play} 10... e6 $17 11. e4 Bd6) 11. Nc6 {[%emt 0:09:42]} (11. Bh3 $11) 11... e5 {[%emt 0:11:06]} (11... Nxd5 $17 12. Qxd5 e6 (12... Nb8 13. Nxe7 Bxd5 14. Nxc8 $17)) 12. O-O $11 {[%emt 0:06:32]} Bd6 {[%emt 0:01:11]} 13. Be3 {[%emt 0:02:19]} O-O {[%emt 0:01:00]} 14. h3 {[%emt 0:02:56]} (14. Na5 $15) 14... Qc7 {[%emt 0:05:35]} (14... Re8 $17 15. Na5 Bb4 16. Nxb7 Qxb7) 15. Na5 {[%emt 0:06:43]} b4 {[%emt 0:04:06]} 16. Nb1 {[%emt 0:06:13]} e4 {[%emt 0:15:45]} 17. Nxb7 {[%emt 0:03:04]} Qxb7 {[%emt 0:00:01]} 18. Nd2 {[%emt 0:00:00]} Rac8 {[%emt 0:00:01]} (18... Nxd5 19. Nxc4 Bc7 (19... Nxe3 20. Nxd6 Nxd1 21. Nxb7 $16) 20. Bxe4 $16) (18... Qxd5 19. Nxe4 Qxd1 20. Nxf6+ Nxf6 21. Rfxd1 $18 (21. Raxd1 Be7 $18)) 19. Nxe4 {[%emt 0:06:16]} Nxe4 {[%emt 0:00:23]} 20. Bxe4 {[%emt 0:00:03]} Rfe8 {[%emt 0:03:24]} 21. Qb1 {[%emt 0:17:47]} ({White should try} 21. Bf5 $15) 21... g6 {[%emt 0:06:44]} 22. Bd4 {[%emt 0:03:17]} (22. Bf3 $142) 22... Bc5 {[%emt 0:02:38]} (22... Nc5 $142 $1 {[%cal Rc5e4]} 23. Bxc5 Rxc5 (23... Bxc5 24. Bf3 $17)) 23. Bxc5 {[%emt 0:10:48]} (23. Rd1 $17 {was the only chance.}) 23... Nxc5 $19 {[%emt 0:00:19]} 24. Bf3 {[%emt 0:00:01]} Nb3 {[%emt 0:09:35]} 25. d6 {[%emt 0:00:06]} Qd7 {[%emt 0:00:57]} (25... Qa7 $142 {[%cal Oe8d8] ...Red8! is the strong threat.} 26. Rd1 Rcd8 (26... Nxa1 27. d7 $15)) 26. Rxa6 $17 {[%emt 0:00:35] Black must now prevent Rd1.} Nd2 $1 {[%emt 0:00:25]} 27. Qd1 {[%emt 0:04:32]} (27. Bg4 $17 f5 28. Qd1) 27... Nxf1 $19 {[%emt 0:05:14]} 28. Bg4 {[%emt 0:00:12]} Qb7 {[%emt 0:10:11]} (28... Ne3 29. fxe3 Qb5 30. Bxc8 Rxc8 31. Ra7 $11) 29. Bxc8 {[%emt 0:01:49]} Rxc8 {[%emt 0:00:01]} 30. Ra1 {[%emt 0:01:22] [#]} c3 {[%emt 0:00:58]} (30... Nxg3 $1 $19 {( -> ...Qh1#)} 31. fxg3 Qb6+ 32. Kg2 Qc6+ 33. e4 Rd8 (33... Qxe4+ $2 34. Qf3 $19)) 31. bxc3 $15 {[%emt 0:00:06] [#]} bxc3 $1 {[%emt 0:00:02]} 32. Qxf1 {[%emt 0:00:14]} (32. d7 Rd8) 32... c2 {[%emt 0:00:18]} 33. Qc1 {[%emt 0:00:24]} (33. Rc1 $15) 33... Qd5 $17 {[%emt 0:00:25]} 34. Kh2 {[%emt 0:01:37]} (34. Qe1 $17) 34... Qxd6 $19 {[%emt 0:00:10]} 35. Qe3 {[%emt 0:00:21] Prevents Qd4} h5 {[%emt 0:04:59]} 36. h4 {[%emt 0:00:08]} (36. Rc1 $17) 36... Qd1 $2 {[%emt 0:05:08]} (36... Qc6 $19 37. Rc1 Rd8) 37. Rc1 $17 {[%emt 0:00:04]} Rd8 {[%emt 0:00:35]} 38. Kg2 $2 {[%emt 0:03:10][%mdl 8192] [#]} (38. Qe7 $17) 38... Kh7 $2 {[%emt 0:02:25]} (38... Qd5+ $1 $19 39. f3 Qd1) 39. Qf4 $17 {[%emt 0:00:08]} Rd7 {[%emt 0:00:17]} (39... Qxe2 $2 40. Qxf7+ Kh6 41. Qf4+ Kg7 42. Qc7+ Kf6 43. Qxd8+ $18) (39... Qd5+ $17 40. f3 Rc8) 40. Qe3 $2 {[%emt 0:00:00]} (40. Qa4 $1 $11 {and White has nothing to worry.}) 40... Rb7 {[%emt 0:00:00]} 41. Qf4 {[%emt 0:15:20]} Kg8 {[%emt 0:05:49][%cal Ob7b1]} ({Don't play} 41... Qxe2 42. Qf3 Qxf3+ 43. Kxf3) 42. Qe3 {[%emt 0:00:10]} Rb1 {[%emt 0:00:57]} (42... Rb8 $17 43. Qe5 Rc8) 43. Qe8+ $11 {[%emt 0:00:48]} Kg7 {[%emt 0:00:13]} 44. Qe5+ {[%emt 0:00:08]} Kh7 {[%emt 0:00:13]} (44... Kf8 $5 45. Qc5+ $8 Kg8 46. Qc8+ Kg7 (46... Kh7 47. Qc4 $11) 47. Qc3+ f6 48. Qc7+ (48. Rxc2 $2 Qh1#) 48... Kg8 49. Qc4+ Kg7 50. Qc7+ $11 (50. Rxc2 $2 Qh1#)) 45. Qe7 {[%emt 0:03:38]} Kg7 {[%emt 0:08:36]} 46. Qe5+ $1 {[%emt 0:00:02]} Kf8 {[%emt 0:00:01]} (46... Kg8 $5 47. Qe8+ $8 Kg7 48. Qe5+ $11) 47. Qc5+ {[%emt 0:00:02]} Kg8 {[%emt 0:00:37]} 48. Qc8+ {[%emt 0:02:46]} Kg7 {[%emt 0:00:35]} 49. Qc3+ {[%emt 0:00:27]} Kh7 {[%emt 0:00:26]} (49... Kg8 $5 50. Qc8+ $8 Kh7 $11) 50. Qc4 $1 {[%emt 0:00:19]} Kh6 {[%emt 0:10:48]} 51. Qxf7 {[%emt 0:03:47]} Qxc1 {[%emt 0:08:03][%csl Gb1][%cal Rc1h1]} (51... Rxc1 $5 52. Qf8+ $8 Kh7 53. Qf7+ Kh8 54. Qf8+ Kh7 $11) 52. Qf8+ {[%emt 0:00:07]} Kh7 {[%emt 0:00:12][%csl Gb1][%cal Rc1h1]} 53. Qf7+ {[%emt 0:00:02]} Kh8 {[%emt 0:00:11][%csl Gb1][%cal Rc1h1]} 54. Qf8+ {[%emt 0:00:02]} Kh7 {[%emt 0:00:13][%csl Gb1][%cal Rc1h1]} 55. Qf7+ {[%emt 0:00:03]} Kh8 {[%emt 0:00:09][%csl Gb1][%cal Rc1h1]} 56. Qf8+ {[%emt 0:00:04]} Kh7 {[%emt 0:00:17][%csl Gb1][%cal Rc1h1]} 57. Qf7+ {[%emt 0:00:06]} 1/2-1/2

[Event "Azerbaijan-ch 1st League 2025"]
[Site "Baku"]
[Date "2025.01.07"]
[Round "2.10"]
[White "Isfandiyarli, Kamal"]
[Black "Hajialiyev, Islam"]
[Result "1/2-1/2"]
[Annotator "TA"]
[ECO "D31"]
[WhiteElo "2027"]
[BlackElo "2217"]
[PlyCount "93"]
[EventDate "2025.01.05"]
[EventType "swiss"]
[EventCountry "AZE"]
[SourceTitle "playchess.com"]
[Source "ChessBase"]
[SourceQuality "1"]
[TimeControl "40/5400+30:1800+30"]

{[%evp 9,93,21,27,35,31,24,27,17,29,18,29,25,36,41,41,3,0,8,8,3,9,10,0,0,0,6,0,0,0,0,0,0,0,0,0,-30,-11,-14,-14,-31,-35,-37,-32,-29,-33,-18,0,0,25,-31,-27,-35,-22,-128,-31,-26,-26,-24,39,35,35,35,38,27,23,23,23,23,27,23,23,23,23,23,38,16,36,35,41,44,72,72,72,64,78,70]} 1. d4 {[%emt 0:01:13]} d5 {[%emt 0:00:22]} 2. c4 {[%emt 0:00:24]} e6 {[%emt 0:00:02]} 3. Nc3 {[%emt 0:00:33]} a6 {[%emt 0:00:01]} 4. cxd5 {[%emt 0:01:48]} exd5 {[%emt 0:00:02]} 5. Nf3 {[%emt 0:00:16]} Be7 {[%emt 0:00:01]} 6. Bf4 {[%emt 0:01:04]} Nf6 {[%emt 0:00:18]} 7. h3 {[%emt 0:02:46]} O-O {[%emt 0:00:44]} 8. e3 {[%emt 0:00:37] White has an edge.} Nbd7 {[%emt 0:00:50]} 9. Bd3 {[%emt 0:02:36]} Re8 {[%emt 0:00:56]} 10. O-O {[%emt 0:00:14]} Nf8 {[%emt 0:00:11]} 11. Rc1 {[%emt 0:06:43]} Ng6 {[%emt 0:08:43]} 12. Bxg6 {[%emt 0:09:35]} hxg6 {[%emt 0:00:58]} 13. Qb3 {[%emt 0:00:08]} c6 {[%emt 0:06:21]} 14. Ne5 {[%emt 0:03:21]} a5 {[%emt 0:04:47]} 15. Rfd1 {[%emt 0:03:46]} Ra6 {[%emt 0:01:31][%cal Ba8a6,Ba6b6,Bb6b5][%mdl 32]} 16. Na4 {[%emt 0:05:28]} Ne4 {[%emt 0:12:03]} 17. Nd3 {[%emt 0:04:35]} Bf8 {[%emt 0:08:23]} 18. Ndc5 {[%emt 0:02:20]} Nxc5 {[%emt 0:02:58]} 19. Nxc5 {[%emt 0:01:15]} Rb6 {[%emt 0:11:27]} 20. Qc3 {[%emt 0:00:34]} g5 {[%emt 0:01:40]} 21. Bg3 {[%emt 0:08:13]} Rb5 {[%emt 0:02:20]} 22. Nd3 {[%emt 0:02:21]} Bf5 {[%emt 0:12:24]} 23. a4 $1 {[%emt 0:14:39]} Bb4 {[%emt 0:00:02]} 24. Qc2 {[%emt 0:05:30]} Rb6 {[%emt 0:00:39]} 25. Qe2 {[%emt 0:00:02]} Bf8 {[%emt 0:01:13]} 26. Rc3 {[%emt 0:04:47]} Re6 {[%emt 0:08:10]} 27. b3 {[%emt 0:03:54]} Rh6 {[%emt 0:02:00]} 28. Nc5 {[%emt 0:00:09]} Qc8 {[%emt 0:06:34]} 29. e4 {[%emt 0:04:10]} ({White should try} 29. f3 $11) 29... dxe4 $15 {[%emt 0:00:21]} 30. Nxe4 {[%emt 0:00:29]} Re6 {[%emt 0:01:54]} 31. Re3 {[%emt 0:00:30]} (31. f3 $11) 31... Rxe4 {[%emt 0:03:07]} (31... Bxe4 $17 32. Rxe4 Rxb3) 32. Rxe4 {[%emt 0:00:02]} Bxe4 {[%emt 0:00:01]} 33. Qxe4 {[%emt 0:00:01]} Qe6 {[%emt 0:00:01]} ({Better is} 33... Rxb3 $11 34. Qc2 Rb6) 34. Qxe6 $14 {[%emt 0:01:09]} fxe6 {[%emt 0:00:01][%mdl 4096] Endgame. KRB-KRB} 35. Rd3 {[%emt 0:00:49]} Be7 {[%emt 0:01:58]} 36. Bc7 {[%emt 0:01:04]} Ra6 {[%emt 0:00:06]} 37. Kf1 {[%emt 0:04:34]} Kf7 {[%emt 0:00:18]} 38. Ke2 {[%emt 0:00:14]} Bf6 {[%emt 0:02:02]} 39. Ke3 {[%emt 0:01:03]} Ke7 {[%emt 0:00:54]} 40. Ke4 {[%emt 0:00:00]} Kd7 {[%emt 0:00:00]} 41. Be5 {[%emt 0:02:22]} Rb6 {[%emt 0:02:17]} 42. f4 {[%emt 0:18:14] [#] fxg5 would now be deadly.} gxf4 {[%emt 0:17:19]} 43. Bxf4 {[%emt 0:00:34]} Ra6 {[%emt 0:00:36]} 44. g4 {[%emt 0:01:35][%cal Bg2g4,Bg4g5][%mdl 32]} Ra8 {[%emt 0:00:38]} 45. g5 {[%emt 0:00:15]} Be7 {[%emt 0:00:10]} 46. h4 {[%emt 0:01:31]} Rh8 {[%emt 0:08:33]} 47. Rh3 {[%emt 0:00:12] Weighted Error Value: White=0.11 (very precise) /Black=0.10 (very precise) .  Mistake:       	White=2     	Black=2      Inaccurate:     	White=2     	Black=1      OK:         	White=16    	Black=18     Best:        	White=2     	Black=2      Strong:       	White=1     	---} 1/2-1/2